[Event "Betsys MČR v online bleskovém šachu 2021"]
[Site "Chess.com"]
[Date "2021.04.17"]
[Round "8"]
[White "Patrik_Kohm"]
[Black "BetsysBetting"]
[Result "0-1"]
[WhiteElo "1398"]
[BlackElo "1914"]
[TimeControl "180+1"]
[EndTime "10:21:04 PDT"]
[Termination "Uživatel BetsysBetting zvítězil matem"]

1. e4 {[%clk 0:03:00.9]} 1... c5 {[%clk 0:02:56.3]} 2. c3 {[%clk 0:02:58.7]}
2... Nf6 {[%clk 0:02:51.3]} 3. e5 {[%clk 0:02:57.4]} 3... Nd5 {[%clk 0:02:51]}
4. d4 {[%clk 0:02:57.2]} 4... cxd4 {[%clk 0:02:45]} 5. cxd4 {[%clk 0:02:58.1]}
5... e6 {[%clk 0:02:45.4]} 6. Nf3 {[%clk 0:02:57.4]} 6... b6 {[%clk 0:02:45.4]}
7. Bc4 {[%clk 0:02:56.5]} 7... Bb7 {[%clk 0:02:44.4]} 8. Nc3 {[%clk 0:02:52.7]}
8... Be7 {[%clk 0:02:30]} 9. Nxd5 {[%clk 0:02:50.5]} 9... exd5 {[%clk
0:02:28.2]} 10. Bb3 {[%clk 0:02:50.3]} 10... O-O {[%clk 0:02:25]} 11. Be3 {[%clk
0:02:49.9]} 11... d6 {[%clk 0:02:25.1]} 12. O-O {[%clk 0:02:46.1]} 12... Nd7
{[%clk 0:02:21.6]} 13. exd6 {[%clk 0:02:43.5]} 13... Bxd6 {[%clk 0:02:21.4]} 14.
Bg5 {[%clk 0:02:40.9]} 14... f6 {[%clk 0:01:46.6]} 15. Be3 {[%clk 0:02:37.6]}
15... Re8 {[%clk 0:01:46.5]} 16. Qd2 {[%clk 0:02:30.2]} 16... Nf8 {[%clk
0:01:41.4]} 17. Rac1 {[%clk 0:02:25.1]} 17... Qd7 {[%clk 0:01:40.4]} 18. Rfe1
{[%clk 0:02:19]} 18... Ng6 {[%clk 0:01:31.4]} 19. Qd3 {[%clk 0:02:05.3]} 19...
Kh8 {[%clk 0:01:18.9]} 20. Bd2 {[%clk 0:01:55]} 20... Qg4 {[%clk 0:01:14.2]} 21.
h3 {[%clk 0:01:47.3]} 21... Qh5 {[%clk 0:01:12.5]} 22. Qb5 {[%clk 0:01:34.7]}
22... Nf4 {[%clk 0:01:00.3]} 23. Qd7 {[%clk 0:01:20.4]} 23... Nd3 {[%clk
0:00:14.6]} 24. Rxe8+ {[%clk 0:01:04.3]} 24... Rxe8 {[%clk 0:00:13.9]} 25. Rf1
{[%clk 0:01:00.2]} 25... Bc8 {[%clk 0:00:05.6]} 26. Qxd6 {[%clk 0:00:56.9]}
26... Bxh3 {[%clk 0:00:05.4]} 27. gxh3 {[%clk 0:00:55.7]} 27... Qxf3 {[%clk
0:00:05.4]} 28. Qg3 {[%clk 0:00:53.8]} 28... Qe2 {[%clk 0:00:04.9]} 29. Bc3
{[%clk 0:00:48.1]} 29... h5 {[%clk 0:00:04.1]} 30. Qh4 {[%clk 0:00:45.4]} 30...
g5 {[%clk 0:00:02.4]} 31. Qxh5+ {[%clk 0:00:44.8]} 31... Qxh5 {[%clk 0:00:01.9]}
32. Bd1 {[%clk 0:00:42.8]} 32... Qxh3 {[%clk 0:00:01.7]} 33. Bc2 {[%clk
0:00:41.7]} 33... Nf4 {[%clk 0:00:01.8]} 34. Be4 {[%clk 0:00:31.7]} 34... dxe4
{[%clk 0:00:02.7]} 35. f3 {[%clk 0:00:29.5]} 35... Qg2# {[%clk 0:00:03.6]} 0-1

[Event "Betsys MČR v online bleskovém šachu 2021"]
[Site "Chess.com"]
[Date "2021.04.17"]
[Round "8"]
[White "Varinius"]
[Black "Dvacetsekund"]
[Result "1-0"]
[WhiteElo "2425"]
[BlackElo "2196"]
[TimeControl "180+1"]
[EndTime "10:21:08 PDT"]
[Termination "Uživatel Varinius zvítězil na čas"]

1. d4 {[%clk 0:03:00.9]} 1... Nf6 {[%clk 0:02:57.8]} 2. Nf3 {[%clk 0:03:01.4]}
2... b6 {[%clk 0:02:57.8]} 3. c4 {[%clk 0:03:01.9]} 3... Bb7 {[%clk 0:02:57.8]}
4. Nc3 {[%clk 0:03:02.4]} 4... Ne4 {[%clk 0:02:56.3]} 5. Qc2 {[%clk 0:03:00.6]}
5... Nxc3 {[%clk 0:02:55.3]} 6. Qxc3 {[%clk 0:03:00.6]} 6... e6 {[%clk
0:02:55.7]} 7. e3 {[%clk 0:02:59.7]} 7... a5 {[%clk 0:02:56.3]} 8. a3 {[%clk
0:02:59.7]} 8... Bb4 {[%clk 0:02:55.9]} 9. axb4 {[%clk 0:02:59.3]} 9... axb4
{[%clk 0:02:55.7]} 10. Rxa8 {[%clk 0:02:45.7]} 10... bxc3 {[%clk 0:02:51.9]} 11.
Ra2 {[%clk 0:02:43.6]} 11... cxb2 {[%clk 0:02:36.8]} 12. Rxb2 {[%clk 0:02:44.5]}
12... O-O {[%clk 0:02:29]} 13. Bd3 {[%clk 0:02:44.4]} 13... Bxf3 {[%clk
0:02:25.9]} 14. gxf3 {[%clk 0:02:44]} 14... Nc6 {[%clk 0:02:22.7]} 15. Bd2
{[%clk 0:02:38.5]} 15... Qe7 {[%clk 0:02:14]} 16. Ke2 {[%clk 0:02:31.7]} 16...
d5 {[%clk 0:02:11.2]} 17. Rc1 {[%clk 0:02:29]} 17... dxc4 {[%clk 0:01:32.3]} 18.
Rxc4 {[%clk 0:02:24.3]} 18... Na5 {[%clk 0:01:24.9]} 19. Rc1 {[%clk 0:02:18.2]}
19... Rd8 {[%clk 0:01:12.6]} 20. Bb4 {[%clk 0:02:07.4]} 20... Qd7 {[%clk
0:01:06.3]} 21. Rbc2 {[%clk 0:01:34.4]} 21... Nb3 {[%clk 0:00:47.2]} 22. Rb1
{[%clk 0:01:32.5]} 22... Nxd4+ {[%clk 0:00:42.1]} 23. exd4 {[%clk 0:01:29.4]}
23... Qxd4 {[%clk 0:00:43]} 24. Rb3 {[%clk 0:00:59.8]} 24... Qe5+ {[%clk
0:00:32.9]} 25. Kf1 {[%clk 0:00:54.8]} 25... c5 {[%clk 0:00:24.6]} 26. Bd2
{[%clk 0:00:51.4]} 26... Qxh2 {[%clk 0:00:13.2]} 27. Be3 {[%clk 0:00:47.9]}
27... Qd6 {[%clk 0:00:10.7]} 28. Ke2 {[%clk 0:00:44.9]} 28... f6 {[%clk
0:00:08.1]} 29. Rd2 {[%clk 0:00:44.9]} 29... Qe7 {[%clk 0:00:07.7]} 30. Rxb6
{[%clk 0:00:43.8]} 30... Kf7 {[%clk 0:00:07.5]} 31. Rc2 {[%clk 0:00:39.4]} 31...
Qd7 {[%clk 0:00:06.8]} 32. Rd2 {[%clk 0:00:36.8]} 32... Qe7 {[%clk 0:00:06.8]}
33. Ke1 {[%clk 0:00:33.6]} 33... Qc7 {[%clk 0:00:04.8]} 34. Rdb2 {[%clk
0:00:31.4]} 34... Kg8 {[%clk 0:00:02]} 35. Bc4 {[%clk 0:00:31.1]} 1-0

[Event "Betsys MČR v online bleskovém šachu 2021"]
[Site "Chess.com"]
[Date "2021.04.17"]
[Round "8"]
[White "Tretrik"]
[Black "mysacek1414"]
[Result "0-1"]
[WhiteElo "2056"]
[BlackElo "1883"]
[TimeControl "180+1"]
[EndTime "10:21:09 PDT"]
[Termination "Uživatel mysacek1414 zvítězil na čas"]

1. e4 {[%clk 0:03:00.9]} 1... e6 {[%clk 0:03:00.1]} 2. d4 {[%clk 0:02:59.9]}
2... d5 {[%clk 0:03:00.7]} 3. e5 {[%clk 0:03:00.4]} 3... c5 {[%clk 0:03:00.4]}
4. c3 {[%clk 0:03:00.9]} 4... Nc6 {[%clk 0:03:00.9]} 5. Nf3 {[%clk 0:03:00.6]}
5... Bd7 {[%clk 0:03:01.5]} 6. Na3 {[%clk 0:02:58.2]} 6... Nh6 {[%clk 0:03:01]}
7. Bxh6 {[%clk 0:02:48.8]} 7... gxh6 {[%clk 0:03:01.9]} 8. Nc2 {[%clk
0:02:48.4]} 8... Bg7 {[%clk 0:03:00.8]} 9. Bd3 {[%clk 0:02:45.9]} 9... O-O
{[%clk 0:03:00.1]} 10. O-O {[%clk 0:02:45.2]} 10... cxd4 {[%clk 0:02:56.8]} 11.
cxd4 {[%clk 0:02:44.5]} 11... f6 {[%clk 0:02:56.4]} 12. Re1 {[%clk 0:02:42.7]}
12... Qb6 {[%clk 0:02:48.5]} 13. Qe2 {[%clk 0:02:30]} 13... fxe5 {[%clk
0:02:44.4]} 14. dxe5 {[%clk 0:02:19]} 14... Rxf3 {[%clk 0:02:11.5]} 15. Qxf3
{[%clk 0:02:18.6]} 15... Nxe5 {[%clk 0:02:11.5]} 16. Qe2 {[%clk 0:02:13.1]}
16... Nxd3 {[%clk 0:02:00.8]} 17. Qxd3 {[%clk 0:02:14]} 17... Rf8 {[%clk
0:02:00.4]} 18. Ne3 {[%clk 0:02:03.9]} 18... Qxb2 {[%clk 0:01:48.2]} 19. Rab1
{[%clk 0:01:11.5]} 19... Qxf2+ {[%clk 0:01:45.8]} 20. Kh1 {[%clk 0:01:12]} 20...
d4 {[%clk 0:01:41.2]} 21. Ng4 {[%clk 0:00:47.5]} 21... Qf4 {[%clk 0:01:40.2]}
22. h3 {[%clk 0:00:14.8]} 22... Qc7 {[%clk 0:00:50.2]} 23. Rf1 {[%clk
0:00:10.5]} 23... Rxf1+ {[%clk 0:00:35.5]} 24. Rxf1 {[%clk 0:00:09.6]} 24... e5
{[%clk 0:00:35.9]} 25. Qb3+ {[%clk 0:00:08.4]} 25... Kh8 {[%clk 0:00:30.6]} 26.
Qf7 {[%clk 0:00:07.6]} 26... Qd8 {[%clk 0:00:21.2]} 27. Nf6 {[%clk 0:00:06.9]}
27... Bb5 {[%clk 0:00:16.2]} 28. Rf5 {[%clk 0:00:04.7]} 28... d3 {[%clk
0:00:15.9]} 29. Rxe5 {[%clk 0:00:02.8]} 29... d2 {[%clk 0:00:14.9]} 0-1

[Event "Betsys MČR v online bleskovém šachu 2021"]
[Site "Chess.com"]
[Date "2021.04.17"]
[Round "8"]
[White "petiva3"]
[Black "Petr_Zacek"]
[Result "0-1"]
[WhiteElo "1401"]
[BlackElo "1756"]
[TimeControl "180+1"]
[EndTime "10:21:10 PDT"]
[Termination "Uživatel Petr_Zacek zvítězil matem"]

1. e4 {[%clk 0:03:00.9]} 1... e6 {[%clk 0:02:59.8]} 2. Qe2 {[%clk 0:03:00]} 2...
c5 {[%clk 0:02:56.7]} 3. f4 {[%clk 0:02:59.5]} 3... d5 {[%clk 0:02:56.6]} 4. d3
{[%clk 0:02:55.4]} 4... Nc6 {[%clk 0:02:56.1]} 5. Nf3 {[%clk 0:02:55]} 5... Nf6
{[%clk 0:02:55.9]} 6. g3 {[%clk 0:02:51.3]} 6... Be7 {[%clk 0:02:52.9]} 7. Bg2
{[%clk 0:02:51.4]} 7... O-O {[%clk 0:02:51.3]} 8. O-O {[%clk 0:02:51.5]} 8...
Qb6 {[%clk 0:02:47.3]} 9. Kh1 {[%clk 0:02:50.1]} 9... Bd7 {[%clk 0:02:36.4]} 10.
Nbd2 {[%clk 0:02:28.2]} 10... Ng4 {[%clk 0:02:34.4]} 11. h3 {[%clk 0:02:20.7]}
11... Nh6 {[%clk 0:02:33.1]} 12. Ng5 {[%clk 0:01:55.5]} 12... Nb4 {[%clk
0:02:24.6]} 13. Ndf3 {[%clk 0:01:48.8]} 13... f6 {[%clk 0:02:13.1]} 14. Nxh7
{[%clk 0:01:34.3]} 14... Kxh7 {[%clk 0:02:12.1]} 15. Nh4 {[%clk 0:01:17.9]}
15... Be8 {[%clk 0:01:54.6]} 16. c3 {[%clk 0:01:12.2]} 16... Na6 {[%clk
0:01:44.1]} 17. exd5 {[%clk 0:01:12]} 17... Bf7 {[%clk 0:01:38.8]} 18. Be4+
{[%clk 0:01:01.8]} 18... Kg8 {[%clk 0:01:35.7]} 19. Ng6 {[%clk 0:01:01.9]} 19...
Rfe8 {[%clk 0:01:32.6]} 20. Nxe7+ {[%clk 0:01:00.5]} 20... Rxe7 {[%clk
0:01:32.5]} 21. dxe6 {[%clk 0:00:48.9]} 21... Bxe6 {[%clk 0:01:22.1]} 22. Qg2
{[%clk 0:00:47.9]} 22... Rb8 {[%clk 0:01:16]} 23. g4 {[%clk 0:00:47.4]} 23... f5
{[%clk 0:01:05.2]} 24. gxf5 {[%clk 0:00:45.7]} 24... Bxf5 {[%clk 0:01:04.9]} 25.
Bxf5 {[%clk 0:00:30.4]} 25... Nxf5 {[%clk 0:01:03.8]} 26. Qd5+ {[%clk
0:00:27.3]} 26... Qe6 {[%clk 0:00:58.7]} 27. Qg2 {[%clk 0:00:21.7]} 27... Ne3
{[%clk 0:00:54.8]} 28. Bxe3 {[%clk 0:00:20.5]} 28... Qxe3 {[%clk 0:00:42.3]} 29.
Rg1 {[%clk 0:00:20.7]} 29... Qxf4 {[%clk 0:00:38]} 30. Raf1 {[%clk 0:00:19.2]}
30... Qh6 {[%clk 0:00:35.2]} 31. Qd5+ {[%clk 0:00:17.4]} 31... Qe6 {[%clk
0:00:31.9]} 32. Qg5 {[%clk 0:00:15.8]} 32... Rd8 {[%clk 0:00:26.9]} 33. Rf2
{[%clk 0:00:13.2]} 33... Qd5+ {[%clk 0:00:26.7]} 34. Rfg2 {[%clk 0:00:13]} 34...
Qxg5 {[%clk 0:00:26.1]} 35. Rxg5 {[%clk 0:00:13.3]} 35... Rxd3 {[%clk
0:00:26.2]} 36. Kh2 {[%clk 0:00:12.5]} 36... b6 {[%clk 0:00:26.2]} 37. Rg6
{[%clk 0:00:11.3]} 37... Re2+ {[%clk 0:00:24.5]} 38. Kh1 {[%clk 0:00:10.6]}
38... Rxh3# {[%clk 0:00:23.7]} 0-1

[Event "Betsys MČR v online bleskovém šachu 2021"]
[Site "Chess.com"]
[Date "2021.04.17"]
[Round "8"]
[White "avsokol"]
[Black "Stalri"]
[Result "0-1"]
[WhiteElo "2363"]
[BlackElo "2210"]
[TimeControl "180+1"]
[EndTime "10:21:13 PDT"]
[Termination "Uživatel Stalri zvítězil na čas"]

1. e4 {[%clk 0:03:00.9]} 1... c5 {[%clk 0:02:59.8]} 2. Nf3 {[%clk 0:02:57.8]}
2... e6 {[%clk 0:03:00.1]} 3. d4 {[%clk 0:02:58]} 3... cxd4 {[%clk 0:03:00.1]}
4. Nxd4 {[%clk 0:02:58.6]} 4... Nc6 {[%clk 0:03:00.6]} 5. Nc3 {[%clk 0:02:58.2]}
5... Nf6 {[%clk 0:03:00.9]} 6. Ndb5 {[%clk 0:02:55.7]} 6... Bc5 {[%clk
0:03:00.5]} 7. Nd6+ {[%clk 0:02:38.4]} 7... Ke7 {[%clk 0:03:00.4]} 8. Nxc8+
{[%clk 0:02:17]} 8... Rxc8 {[%clk 0:02:59.7]} 9. Be2 {[%clk 0:02:15.6]} 9... d5
{[%clk 0:02:59.6]} 10. exd5 {[%clk 0:02:14.8]} 10... exd5 {[%clk 0:03:00.5]} 11.
O-O {[%clk 0:02:11.2]} 11... Re8 {[%clk 0:03:00.9]} 12. Bf3 {[%clk 0:01:59.1]}
12... d4 {[%clk 0:02:47.2]} 13. Ne4 {[%clk 0:01:55.4]} 13... Nxe4 {[%clk
0:02:41.1]} 14. Bxe4 {[%clk 0:01:55.2]} 14... h6 {[%clk 0:02:29.5]} 15. Bf4
{[%clk 0:01:45.6]} 15... Kf8 {[%clk 0:02:24.9]} 16. Qf3 {[%clk 0:01:38]} 16...
Qf6 {[%clk 0:02:20.6]} 17. Rfe1 {[%clk 0:01:23.9]} 17... Bd6 {[%clk 0:02:09.8]}
18. Bxd6+ {[%clk 0:01:04]} 18... Qxd6 {[%clk 0:02:10.7]} 19. Rad1 {[%clk
0:01:02.3]} 19... Ne5 {[%clk 0:02:07.2]} 20. Qb3 {[%clk 0:01:00.2]} 20... b6
{[%clk 0:01:56.3]} 21. g3 {[%clk 0:00:57.2]} 21... Qf6 {[%clk 0:01:48]} 22. Bg2
{[%clk 0:00:53.4]} 22... Red8 {[%clk 0:01:40.2]} 23. Re2 {[%clk 0:00:46.4]}
23... Kg8 {[%clk 0:01:28.5]} 24. Red2 {[%clk 0:00:44]} 24... Nc4 {[%clk
0:01:16.4]} 25. Re2 {[%clk 0:00:42.8]} 25... Rc5 {[%clk 0:01:08.3]} 26. Rf1
{[%clk 0:00:37.5]} 26... Ne5 {[%clk 0:01:01.1]} 27. Rfe1 {[%clk 0:00:35.9]}
27... h5 {[%clk 0:00:41.1]} 28. Qa4 {[%clk 0:00:30.2]} 28... a5 {[%clk
0:00:32.9]} 29. Qb3 {[%clk 0:00:29.5]} 29... h4 {[%clk 0:00:32]} 30. Re4 {[%clk
0:00:22.3]} 30... h3 {[%clk 0:00:27.7]} 31. Bh1 {[%clk 0:00:20]} 31... d3 {[%clk
0:00:26.7]} 32. cxd3 {[%clk 0:00:19]} 32... Nf3+ {[%clk 0:00:25.3]} 33. Bxf3
{[%clk 0:00:14.8]} 33... Qxf3 {[%clk 0:00:24.4]} 34. Re8+ {[%clk 0:00:14.2]}
34... Kh7 {[%clk 0:00:21.7]} 0-1

[Event "Betsys MČR v online bleskovém šachu 2021"]
[Site "Chess.com"]
[Date "2021.04.17"]
[Round "8"]
[White "Toman_26"]
[Black "pudltomik"]
[Result "0-1"]
[WhiteElo "873"]
[BlackElo "766"]
[TimeControl "180+1"]
[EndTime "10:21:13 PDT"]
[Termination "Uživatel pudltomik zvítězil na čas"]

1. e4 {[%clk 0:03:00.9]} 1... d6 {[%clk 0:02:59.1]} 2. d4 {[%clk 0:02:59.4]}
2... Nf6 {[%clk 0:02:56.2]} 3. Nc3 {[%clk 0:02:58]} 3... Nc6 {[%clk 0:02:54.6]}
4. Nf3 {[%clk 0:02:56.8]} 4... d5 {[%clk 0:02:51]} 5. e5 {[%clk 0:02:56]} 5...
Ng4 {[%clk 0:02:48.8]} 6. Bd3 {[%clk 0:02:46.2]} 6... e6 {[%clk 0:02:47.8]} 7.
O-O {[%clk 0:02:45.8]} 7... h5 {[%clk 0:02:43.9]} 8. h3 {[%clk 0:02:38.9]} 8...
Nh6 {[%clk 0:02:38.2]} 9. Be3 {[%clk 0:02:28.4]} 9... f5 {[%clk 0:02:36.7]} 10.
exf6 {[%clk 0:02:26.6]} 10... gxf6 {[%clk 0:02:34.8]} 11. Re1 {[%clk 0:02:20.7]}
11... Nf7 {[%clk 0:02:32.1]} 12. Bg6 {[%clk 0:02:12.4]} 12... Rg8 {[%clk
0:02:25.8]} 13. Bxh5 {[%clk 0:02:09.7]} 13... Qe7 {[%clk 0:02:14.1]} 14. Nh4
{[%clk 0:01:54.2]} 14... Bd7 {[%clk 0:02:11.8]} 15. Ng6 {[%clk 0:01:53.6]} 15...
Qd6 {[%clk 0:02:02.6]} 16. Nb5 {[%clk 0:01:44.8]} 16... Qb4 {[%clk 0:01:49.9]}
17. Nxc7+ {[%clk 0:01:42.8]} 17... Kd8 {[%clk 0:01:47.2]} 18. Nxa8 {[%clk
0:01:40.6]} 18... Qxb2 {[%clk 0:01:46.3]} 19. Rb1 {[%clk 0:01:38]} 19... Qa3
{[%clk 0:01:35.3]} 20. Rxb7 {[%clk 0:01:28.6]} 20... Qa6 {[%clk 0:01:28.8]} 21.
Rb2 {[%clk 0:01:08.9]} 21... Bb4 {[%clk 0:01:17.8]} 22. Re2 {[%clk 0:01:00.9]}
22... Bc3 {[%clk 0:01:13]} 23. Rb3 {[%clk 0:00:56.9]} 23... Na5 {[%clk
0:01:08.4]} 24. Rxc3 {[%clk 0:00:53.7]} 24... Bb5 {[%clk 0:01:05.5]} 25. Re1
{[%clk 0:00:43.2]} 25... Bc6 {[%clk 0:01:00.1]} 26. Bf4 {[%clk 0:00:34.4]} 26...
Bxa8 {[%clk 0:00:58.1]} 27. Bc7+ {[%clk 0:00:25.3]} 27... Kd7 {[%clk 0:00:56.4]}
28. Bxa5 {[%clk 0:00:17.9]} 28... Qxa5 {[%clk 0:00:55.4]} 29. Rb3 {[%clk
0:00:18.2]} 29... Bc6 {[%clk 0:00:51.1]} 30. Qb1 {[%clk 0:00:17.5]} 30... Kd6
{[%clk 0:00:49.2]} 31. Nf4 {[%clk 0:00:15.6]} 31... Ng5 {[%clk 0:00:42.6]} 32.
Bf3 {[%clk 0:00:11.6]} 32... Nxf3+ {[%clk 0:00:39.9]} 33. Kf1 {[%clk 0:00:09.5]}
33... Nd2+ {[%clk 0:00:38.6]} 34. Kg1 {[%clk 0:00:02.3]} 34... Nxb1 {[%clk
0:00:38.3]} 35. Rexb1 {[%clk 0:00:02.1]} 35... e5 {[%clk 0:00:34.4]} 36. dxe5+
{[%clk 0:00:01.6]} 36... fxe5 {[%clk 0:00:34.2]} 37. Nd3 {[%clk 0:00:01.3]}
37... Qd2 {[%clk 0:00:31]} 0-1

[Event "Betsys MČR v online bleskovém šachu 2021"]
[Site "Chess.com"]
[Date "2021.04.17"]
[Round "8"]
[White "marfuss"]
[Black "5265"]
[Result "0-1"]
[WhiteElo "2000"]
[BlackElo "1652"]
[TimeControl "180+1"]
[EndTime "10:21:14 PDT"]
[Termination "Uživatel 5265 zvítězil po vzdání soupeře"]

1. d4 {[%clk 0:03:00.9]} 1... d5 {[%clk 0:02:58.5]} 2. Bf4 {[%clk 0:03:00.3]}
2... e6 {[%clk 0:02:55.3]} 3. e3 {[%clk 0:02:59.3]} 3... c5 {[%clk 0:02:55.1]}
4. Nf3 {[%clk 0:02:54.8]} 4... Nc6 {[%clk 0:02:41.7]} 5. c3 {[%clk 0:02:52.6]}
5... Nf6 {[%clk 0:02:41.1]} 6. Nbd2 {[%clk 0:02:50.2]} 6... c4 {[%clk
0:02:32.1]} 7. Ne5 {[%clk 0:02:46]} 7... Bd6 {[%clk 0:02:29.8]} 8. Ndf3 {[%clk
0:02:41.5]} 8... O-O {[%clk 0:02:23.7]} 9. Bg3 {[%clk 0:02:37.3]} 9... Ne4
{[%clk 0:02:23.3]} 10. Be2 {[%clk 0:02:31.9]} 10... Nxg3 {[%clk 0:02:17.9]} 11.
hxg3 {[%clk 0:02:32.8]} 11... Qc7 {[%clk 0:02:15.2]} 12. Qc2 {[%clk 0:02:28.8]}
12... g6 {[%clk 0:02:14.1]} 13. Ng4 {[%clk 0:02:13.8]} 13... h5 {[%clk
0:02:10.2]} 14. Nf6+ {[%clk 0:02:09.7]} 14... Kg7 {[%clk 0:02:10.2]} 15. Nxh5+
{[%clk 0:02:05.1]} 15... gxh5 {[%clk 0:02:08.6]} 16. Rxh5 {[%clk 0:02:04.3]}
16... Kf6 {[%clk 0:02:08.7]} 17. Qh7 {[%clk 0:01:40.4]} 17... Ke7 {[%clk
0:02:07.1]} 18. Qg7 {[%clk 0:01:32.9]} 18... b5 {[%clk 0:02:01.6]} 19. Rh7
{[%clk 0:01:27.7]} 19... b4 {[%clk 0:01:55.5]} 20. Ng5 {[%clk 0:01:24.1]} 20...
Ke8 {[%clk 0:01:55]} 21. Bh5 {[%clk 0:01:19.8]} 21... Nd8 {[%clk 0:01:54.6]} 22.
Rh6 {[%clk 0:00:54.6]} 22... bxc3 {[%clk 0:01:50.8]} 23. bxc3 {[%clk 0:00:54.1]}
23... Rb8 {[%clk 0:01:38]} 24. Nh7 {[%clk 0:00:52.7]} 24... Rb7 {[%clk
0:01:35.2]} 25. Nf6+ {[%clk 0:00:40.4]} 25... Ke7 {[%clk 0:01:30.7]} 26. Qg5
{[%clk 0:00:33.8]} 26... Qa5 {[%clk 0:01:17]} 27. Rc1 {[%clk 0:00:20.3]} 27...
Qa3 {[%clk 0:01:10.8]} 28. Rc2 {[%clk 0:00:17]} 28... Rb1+ {[%clk 0:01:08.4]}
29. Kd2 {[%clk 0:00:15.2]} 29... Rb2 {[%clk 0:01:08.6]} 30. Nxd5+ {[%clk
0:00:13.6]} 30... Kd7 {[%clk 0:01:07.9]} 31. Nf6+ {[%clk 0:00:11.9]} 31... Kc7
{[%clk 0:01:07.5]} 32. Ne4 {[%clk 0:00:11.3]} 32... Rxc2+ {[%clk 0:01:07.2]} 33.
Kxc2 {[%clk 0:00:11.8]} 33... Qxa2+ {[%clk 0:01:07.3]} 34. Kd1 {[%clk
0:00:12.3]} 34... Qb1+ {[%clk 0:01:07.1]} 35. Ke2 {[%clk 0:00:11.8]} 35... Qc2+
{[%clk 0:01:07.1]} 36. Kf3 {[%clk 0:00:11.7]} 36... Bb7 {[%clk 0:00:56.1]} 37.
Qa5+ {[%clk 0:00:11.7]} 37... Kb8 {[%clk 0:00:55.5]} 38. Bxf7 {[%clk 0:00:07.9]}
38... Rxf7+ {[%clk 0:00:52.3]} 39. Kg4 {[%clk 0:00:08]} 39... Qxe4+ {[%clk
0:00:52.3]} 40. Kh3 {[%clk 0:00:08.4]} 40... Qxg2+ {[%clk 0:00:51.5]} 41. Kh4
{[%clk 0:00:08.6]} 41... Be7+ {[%clk 0:00:51.4]} 42. Kh5 {[%clk 0:00:08.5]}
42... Qf3+ {[%clk 0:00:50]} 43. Kg6 {[%clk 0:00:08.9]} 43... Qf6+ {[%clk
0:00:49.5]} 44. Kh5 {[%clk 0:00:08.2]} 44... Qf5+ {[%clk 0:00:48.5]} 45. Qxf5
{[%clk 0:00:07.9]} 45... Rxf5+ {[%clk 0:00:49.4]} 46. Kg6 {[%clk 0:00:08.2]}
46... Rf6+ {[%clk 0:00:49.2]} 47. Kg7 {[%clk 0:00:08.2]} 47... Rxh6 {[%clk
0:00:48]} 48. Kxh6 {[%clk 0:00:08.3]} 48... a5 {[%clk 0:00:48.2]} 0-1

[Event "Betsys MČR v online bleskovém šachu 2021"]
[Site "Chess.com"]
[Date "2021.04.17"]
[Round "8"]
[White "pburak"]
[Black "Vojta0007"]
[Result "1-0"]
[WhiteElo "1281"]
[BlackElo "1466"]
[TimeControl "180+1"]
[EndTime "10:21:14 PDT"]
[Termination "Uživatel pburak zvítězil matem"]

1. e4 {[%clk 0:02:59.7]} 1... c5 {[%clk 0:02:57.8]} 2. Nf3 {[%clk 0:02:58.7]}
2... Nc6 {[%clk 0:02:57.2]} 3. d4 {[%clk 0:02:58]} 3... cxd4 {[%clk 0:02:56.9]}
4. Nxd4 {[%clk 0:02:57.8]} 4... d6 {[%clk 0:02:56.6]} 5. Bb5 {[%clk 0:02:54.3]}
5... Bd7 {[%clk 0:02:55.3]} 6. O-O {[%clk 0:02:49.9]} 6... e6 {[%clk 0:02:53.7]}
7. Nc3 {[%clk 0:02:45.7]} 7... Nf6 {[%clk 0:02:52.7]} 8. Bg5 {[%clk 0:02:43.5]}
8... Be7 {[%clk 0:02:51.9]} 9. Qe2 {[%clk 0:02:34.3]} 9... O-O {[%clk
0:02:47.3]} 10. Nxc6 {[%clk 0:02:27.6]} 10... bxc6 {[%clk 0:02:46.2]} 11. Ba4
{[%clk 0:02:21.4]} 11... h6 {[%clk 0:02:39.2]} 12. Bh4 {[%clk 0:02:18]} 12... d5
{[%clk 0:02:33]} 13. exd5 {[%clk 0:02:12.2]} 13... cxd5 {[%clk 0:02:30]} 14.
Bxd7 {[%clk 0:02:10.6]} 14... Qxd7 {[%clk 0:02:29.3]} 15. Rad1 {[%clk
0:02:00.7]} 15... Qb7 {[%clk 0:02:16]} 16. b3 {[%clk 0:01:54.3]} 16... Rac8
{[%clk 0:02:05.5]} 17. Na4 {[%clk 0:01:48.3]} 17... Qc7 {[%clk 0:01:40.8]} 18.
c3 {[%clk 0:01:40.3]} 18... Ne4 {[%clk 0:01:28.6]} 19. Bxe7 {[%clk 0:01:29.6]}
19... Qxe7 {[%clk 0:01:27.5]} 20. c4 {[%clk 0:01:20.1]} 20... dxc4 {[%clk
0:01:23.1]} 21. Qxe4 {[%clk 0:01:17]} 21... cxb3 {[%clk 0:01:21.1]} 22. axb3
{[%clk 0:01:15.6]} 22... Rb8 {[%clk 0:01:15]} 23. Rd3 {[%clk 0:00:48]} 23...
Rfc8 {[%clk 0:01:07]} 24. h3 {[%clk 0:00:43.3]} 24... Qa3 {[%clk 0:00:50.8]} 25.
Rfd1 {[%clk 0:00:34.6]} 25... Qe7 {[%clk 0:00:40.7]} 26. Rd7 {[%clk 0:00:25.9]}
26... Qe8 {[%clk 0:00:32.2]} 27. Qf3 {[%clk 0:00:21.5]} 27... a5 {[%clk
0:00:26.9]} 28. Nb2 {[%clk 0:00:16.3]} 28... f6 {[%clk 0:00:20.2]} 29. Nc4
{[%clk 0:00:11.4]} 29... e5 {[%clk 0:00:19.5]} 30. Nd6 {[%clk 0:00:04.5]} 30...
Qf8 {[%clk 0:00:19.1]} 31. Nxc8 {[%clk 0:00:03.4]} 31... Rxc8 {[%clk 0:00:19.1]}
32. Qg3 {[%clk 0:00:02.8]} 32... Qe8 {[%clk 0:00:17.4]} 33. Qxg7# {[%clk
0:00:01.6]} 1-0